bitfinex-derivatives/quotes_BTCF0:USTF0_20250722
["timestamp","ask_amount","ask_price","bid_price","bid_amount"]
[1753161138445,0.488155,116930.0,116920.0,1.74111378]
[1753161138645,0.497245,116930.0,116920.0,2.03068625]
[1753161140148,0.514715,116930.0,116920.0,2.03068625]
[1753161144138,0.32629,116930.0,116920.0,2.03068625]
[1753161144339,0.497245,116930.0,116920.0,2.03068625]
[1753161146542,0.32629,116930.0,116920.0,2.03068625]
[1753161147141,0.497245,116930.0,116920.0,2.03068625]
[1753161147347,0.23092,116930.0,116920.0,2.03068625]
[1753161147540,0.20041,116930.0,116920.0,2.03068625]
[1753161148746,0.371365,116930.0,116920.0,2.03068625]
[1753161148946,0.489345,116930.0,116920.0,2.03068625]
[1753161149348,0.498435,116930.0,116920.0,2.03068625]
[1753161150852,0.498435,116930.0,116920.0,1.74111378]
[1753161151152,0.515905,116930.0,116920.0,2.03068625]
[1753161151852,0.515905,116930.0,116920.0,1.74111378]
[1753161152058,0.515905,116930.0,116920.0,2.03068625]
[1753161152653,0.515905,116930.0,116920.0,1.95378121]
[1753161152850,0.515905,116930.0,116920.0,2.03068625]
[1753161153055,0.32748,116930.0,116920.0,2.03068625]
[1753161153555,0.498435,116930.0,116920.0,2.03068625]
[1753161154657,0.498435,116930.0,116920.0,1.74111378]
[1753161154857,0.498435,116930.0,116920.0,2.03068625]
[1753161155652,0.498435,116930.0,116920.0,1.95378121]
[1753161155858,0.515905,116930.0,116920.0,1.95378121]
[1753161157660,0.515905,116930.0,116920.0,2.03068625]
[1753161157862,0.515905,116930.0,116920.0,1.74111378]
[1753161158155,0.515905,116930.0,116920.0,1.10351378]
[1753161158359,0.515905,116930.0,116920.0,1.97151625]
[1753161159162,0.515905,116930.0,116920.0,2.02418625]
[1753161159460,0.515905,116930.0,116920.0,1.68194378]
[1753161160165,0.515905,116930.0,116920.0,1.97151625]
[1753161160864,0.515905,116930.0,116920.0,2.02418625]
[1753161161270,0.32748,116930.0,116920.0,2.02418625]
[1753161161668,0.13986,116930.0,116920.0,2.31375872]
[1753161161867,0.75995662,116970.0,116960.0,0.1709111]
[1753161161868,0.01747,116970.0,116960.0,0.1709111]
[1753161162163,0.2888363,117000.0,116990.0,0.31597]
[1753161162370,0.24707,117000.0,116990.0,0.73693838]
[1753161162560,0.4179227,117000.0,116990.0,0.86800036]
[1753161162756,0.4179227,117000.0,116990.0,0.81674198]
[1753161163265,0.4209227,117000.0,116990.0,0.75519883]
[1753161163472,0.25007,117000.0,116990.0,0.75519883]
[1753161163875,1.75007,117000.0,116990.0,1.0447713]
[1753161164059,1.81223,117000.0,116990.0,1.0907272]
[1753161164266,1.83141,117000.0,116990.0,1.0907272]
[1753161164466,1.72674,117000.0,116990.0,1.0595013]
[1753161164667,1.67096,117000.0,116990.0,1.47386295]
[1753161164867,1.67096,117000.0,116990.0,1.14386295]
[1753161165164,1.67096,117000.0,116990.0,1.45104696]
[1753161165361,1.67096,117000.0,116990.0,1.5122236]
[1753161165564,1.68914,117000.0,116990.0,2.1575436]
[1753161165773,1.7513,117000.0,116990.0,2.1575436]
[1753161166368,1.7513,117000.0,116990.0,1.86434113]
[1753161166566,1.7513,117000.0,116990.0,2.1539136]
[1753161167167,1.7513,117000.0,116990.0,2.13855319]
[1753161167373,1.66996,117000.0,116990.0,2.09636696]
[1753161167571,0.16996,117000.0,116990.0,2.09636696]
[1753161168075,0.16996,117000.0,116990.0,2.14214436]
[1753161168476,0.005,117000.0,116990.0,2.09636696]
[1753161169178,0.005,117000.0,116990.0,2.14211917]
[1753161170173,0.06097,117000.0,116990.0,2.14211917]
[1753161170774,0.08015,117000.0,116990.0,2.14211917]
[1753161171078,0.08015,117000.0,116990.0,2.02684813]
[1753161171479,0.18267,117000.0,116990.0,2.02684813]
[1753161171677,0.22346,117000.0,116990.0,2.02684813]
[1753161178177,0.22346,117000.0,116990.0,2.09627049]
[1753161178483,0.22346,117000.0,116990.0,2.12671828]
[1753161179486,0.12051,117000.0,116990.0,2.12671828]
[1753161179683,0.08015,117000.0,116990.0,2.12671828]
[1753161179875,0.06097,117000.0,116990.0,2.12671828]
[1753161180076,0.06097,117000.0,116990.0,2.13673534]
[1753161180380,0.05697,117000.0,116990.0,2.13673534]
[1753161180580,0.05797,117000.0,116990.0,2.13673534]
[1753161181082,0.07715,117000.0,116990.0,2.13673534]
[1753161181784,0.012,117000.0,116990.0,2.13673534]
[1753161182383,0.012,117000.0,116990.0,2.18248755]
[1753161182581,0.002,117000.0,116990.0,2.47206002]
[1753161182786,0.001,117000.0,116990.0,2.47206002]
[1753161183094,0.001,117000.0,116990.0,2.18248755]
[1753161183292,1.55312,117010.0,117000.0,0.2293626]
[1753161183485,1.6723,117010.0,117000.0,1.32951213]
[1753161183687,1.6723,117010.0,117000.0,1.96735213]
[1753161184088,1.6723,117010.0,117000.0,1.99779992]
[1753161184499,1.6743,117010.0,117000.0,1.99779992]
[1753161184790,1.73646,117010.0,117000.0,1.99779992]
[1753161185991,1.73646,117010.0,117000.0,1.96735213]
[1753161187096,1.73646,117010.0,117000.0,1.7389563]
[1753161187397,1.73646,117010.0,117000.0,2.02852877]
[1753161187792,1.73646,117010.0,117000.0,1.96735213]
[1753161188195,1.73646,117010.0,117000.0,2.02852877]
[1753161191091,1.73646,117010.0,117000.0,1.96735213]
[1753161191796,1.72931,117010.0,117000.0,1.96735213]
[1753161192197,1.72931,117010.0,117000.0,2.04425717]
[1753161193997,1.72931,117010.0,117000.0,1.96735213]
[1753161194896,1.73645,117010.0,117000.0,1.67777966]
[1753161195099,1.73645,117010.0,117000.0,1.96735213]
[1753161195597,1.73645,117010.0,117000.0,2.04050232]
[1753161196291,1.73645,117010.0,117000.0,1.96372213]
[1753161196496,1.73645,117010.0,117000.0,1.96564213]
[1753161196899,1.73645,117010.0,117000.0,2.04244245]
[1753161197298,1.65511,117010.0,117000.0,2.33201492]
[1753161197496,1.67373,117010.0,117000.0,2.33201492]
[1753161197898,1.67373,117010.0,117000.0,1.96564213]
[1753161198200,1.67373,117010.0,117000.0,2.2552146]
[1753161198798,1.67373,117010.0,117000.0,1.67606966]
[1753161199199,1.67373,117010.0,117000.0,1.96564213]
[1753161199496,1.73849,117010.0,117000.0,1.96564213]
[1753161200304,1.73849,117010.0,117000.0,2.2552146]
[1753161200500,1.73849,117010.0,117000.0,2.36284358]
[1753161200803,0.23849,117010.0,117000.0,2.2552146]
[1753161201705,0.26835,117010.0,117000.0,2.2552146]
[1753161202101,0.26835,117010.0,117000.0,2.36284358]
[1753161202296,0.27774,117010.0,117000.0,2.36284358]
[1753161202598,0.17373,117010.0,117000.0,2.36284358]
[1753161202804,0.15511,117010.0,117000.0,2.36284358]
[1753161203304,0.15511,117010.0,117000.0,2.2552146]
[1753161203598,0.17373,117010.0,117000.0,2.36284358]
[1753161204399,0.17373,117010.0,117000.0,2.35282652]
[1753161204599,0.17373,117010.0,117000.0,2.36284264]
[1753161205704,0.17373,117010.0,117000.0,2.25521366]
[1753161206106,0.17373,117010.0,117000.0,2.36284264]
[1753161206305,0.17373,117010.0,117000.0,2.3628427]
[1753161206804,0.27774,117010.0,117000.0,2.3628427]
[1753161208008,0.20359,117010.0,117000.0,2.3628427]
[1753161208206,0.17373,117010.0,117000.0,2.3628427]
[1753161209405,0.05511,117010.0,117000.0,2.3628427]
[1753161210004,0.03941,117010.0,117000.0,2.3628427]
[1753161210199,0.03941,117010.0,117000.0,2.36284226]
[1753161210395,0.00914,117010.0,117000.0,2.35282652]
[1753161210601,0.1617,117030.0,117020.0,0.3228634]
[1753161210805,0.2517,117030.0,117020.0,1.94731587]
[1753161211201,0.2517,117030.0,117020.0,2.02413526]
[1753161211400,0.2517,117030.0,117020.0,1.94731587]
[1753161211802,0.2547,117030.0,117020.0,1.6577434]
[1753161211997,0.30158,117030.0,117020.0,1.94731587]
[1753161212203,0.30158,117030.0,117020.0,1.94858587]
[1753161213605,0.30458,117030.0,117020.0,1.94858587]
[1753161214411,0.30458,117030.0,117020.0,2.02540526]
[1753161214608,0.30258,117030.0,117020.0,2.02540526]
[1753161215098,0.30058,117030.0,117020.0,2.02540526]
[1753161215908,0.30058,117030.0,117020.0,2.08683285]
[1753161216112,0.29958,117030.0,117020.0,2.01001346]
[1753161216505,0.29858,117030.0,117020.0,2.01001346]
[1753161217208,0.29858,117030.0,117020.0,2.37081346]
[1753161218407,0.29858,117030.0,117020.0,2.30938587]
[1753161220016,0.1555,117030.0,117020.0,2.30938587]
[1753161220315,0.1555,117030.0,117020.0,2.38620526]
[1753161220619,0.1555,117030.0,117020.0,2.37077063]
[1753161220811,0.1555,117030.0,117020.0,2.30938587]
[1753161221009,0.25951,117030.0,117020.0,2.30938587]
[1753161221504,0.29858,117030.0,117020.0,2.30938587]
[1753161223711,0.29858,117030.0,117020.0,2.38620526]
[1753161224016,0.1967399,117050.0,117030.0,0.062]
[1753161224315,0.3535359,117150.0,117140.0,0.1706485]
[1753161224612,1.68152,117360.0,117140.0,0.1706485]
[1753161224910,0.1534739,117290.0,117260.0,0.14633827]
[1753161225110,0.1,117290.0,117280.0,0.3608]
[1753161225313,0.201528,117290.0,117280.0,0.28405836]
[1753161225514,0.470488,117290.0,117280.0,0.02828544]
[1753161225716,0.55575039,117290.0,117280.0,0.19873034]
[1753161226017,0.470488,117290.0,117280.0,0.89697744]
[1753161226215,0.225488,117290.0,117280.0,0.92761574]
[1753161226414,0.475488,117290.0,117280.0,0.89697744]
[1753161226618,0.475488,117290.0,117280.0,0.56636936]
[1753161226815,0.475488,117290.0,117280.0,0.5821349]
[1753161227009,0.582518,117290.0,117280.0,0.9429349]
[1753161227215,0.332518,117290.0,117280.0,0.89697744]
[1753161227513,0.16199,117290.0,117280.0,0.89697744]
[1753161227713,0.16199,117290.0,117280.0,0.78790106]
[1753161227912,0.332518,117290.0,117280.0,0.07035396]
[1753161228113,0.12599,117280.0,117270.0,0.06989262]
[1753161228318,0.10703,117270.0,117260.0,0.9113324]
[1753161228521,0.22599,117270.0,117260.0,1.3936134]
[1753161228719,0.22599,117270.0,117260.0,1.0098405]
[1753161228916,0.22599,117270.0,117260.0,0.7343934]
[1753161229217,0.22599,117270.0,117260.0,0.71736015]
[1753161229715,0.22599,117270.0,117260.0,0.69822015]
[1753161229916,0.22599,117270.0,117260.0,0.9312853]
[1753161230119,0.22599,117270.0,117260.0,0.23299998]
[1753161230311,0.58679,117270.0,117260.0,0.76131468]
[1753161230510,0.58679,117270.0,117260.0,0.924274]
[1753161230716,0.58679,117270.0,117260.0,0.7538004]
[1753161230918,1.177801,117270.0,117260.0,0.7554004]
[1753161231119,1.5152481,117270.0,117260.0,0.0234004]
[1753161231520,0.12599,117260.0,117250.0,0.75613542]
[1753161231723,0.9342371,117260.0,117250.0,0.02237542]
[1753161231927,0.7440051,117260.0,117250.0,0.02237542]
[1753161232118,0.6180151,117260.0,117240.0,1.29473648]
[1753161232424,0.12599,117250.0,117240.0,1.09432]
[1753161232725,0.4574471,117250.0,117240.0,0.73296]
[1753161232929,0.4574471,117250.0,117240.0,1.2642627]
[1753161232930,0.12,117250.0,117240.0,1.2642627]
[1753161233119,0.22703,117250.0,117240.0,1.2642627]
[1753161233421,0.24599,117250.0,117240.0,1.09376]
[1753161233827,0.24599,117250.0,117240.0,1.6675998]
[1753161234130,0.24599,117250.0,117240.0,1.7282398]
[1753161234131,0.22703,117250.0,117240.0,1.7282398]
[1753161234427,0.22703,117250.0,117240.0,1.7275998]
[1753161234620,0.22703,117250.0,117240.0,1.3911527]
[1753161234926,0.18102,117250.0,117240.0,1.7305998]
[1753161235125,0.18102,117250.0,117240.0,2.5177098]
[1753161235329,0.06102,117250.0,117240.0,1.4493027]
[1753161235525,0.08102,117250.0,117240.0,2.54690448]
[1753161235721,0.08102,117250.0,117240.0,1.47921738]
[1753161235920,0.08102,117250.0,117240.0,2.54618448]
[1753161236522,0.12703,117250.0,117240.0,2.1788227]
[1753161236828,0.12703,117250.0,117240.0,2.5162698]
[1753161237024,0.12703,117250.0,117240.0,2.5158298]
[1753161237521,0.08102,117250.0,117240.0,2.5158298]
[1753161238225,0.08102,117250.0,117240.0,2.1783827]
[1753161238419,0.08102,117250.0,117240.0,2.8558298]
[1753161239227,0.08102,117250.0,117240.0,1.7867498]
[1753161239433,0.08102,117250.0,117240.0,2.5129898]
[1753161239727,0.08102,117250.0,117240.0,2.54266448]
[1753161239929,0.08102,117250.0,117240.0,1.81666448]
[1753161240136,0.08102,117250.0,117240.0,2.57337407]
[1753161240429,0.08102,117250.0,117240.0,1.85737094]
[1753161240837,0.08102,117250.0,117240.0,2.57241407]
[1753161241034,0.08102,117250.0,117240.0,2.91205407]
[1753161241432,0.08102,117250.0,117240.0,2.91173407]
[1753161241827,0.08102,117250.0,117240.0,2.9217312]
[1753161243433,0.13703,117270.0,117260.0,0.2536336]
[1753161243739,0.17102,117270.0,117260.0,2.19628029]
[1753161244042,0.17102,117270.0,117260.0,2.20627603]
[1753161244935,0.17102,117270.0,117260.0,2.19628029]
[1753161245136,0.17102,117270.0,117260.0,3.01314373]
[1753161246045,0.1704186,117300.0,117280.0,0.1325901]
[1753161246340,0.09936,117290.0,117280.0,0.86236027]
[1753161246543,0.20936,117290.0,117280.0,1.83461129]
[1753161246844,0.20936,117290.0,117280.0,2.19541129]
[1753161247034,0.20936,117290.0,117280.0,2.30304027]
[1753161247641,0.3797899,117290.0,117280.0,0.94839857]
[1753161247833,1.078037,117290.0,117280.0,0.21290806]
[1753161248029,1.185067,117290.0,117280.0,0.85561857]
[1753161248230,1.185067,117290.0,117280.0,0.74782959]
[1753161248534,0.824267,117290.0,117280.0,0.74782959]
[1753161248729,1.355595,117290.0,117280.0,0.74782959]
[1753161248935,1.355595,117290.0,117280.0,0.03270959]
[1753161249131,1.355595,117290.0,117280.0,0.74918959]
[1753161249334,1.0181479,117290.0,117280.0,0.85681857]
[1753161249533,1.355595,117290.0,117280.0,0.85681857]
[1753161249730,0.994795,117290.0,117280.0,0.85481857]
[1753161249935,0.6573479,117290.0,117280.0,0.93962243]
[1753161250142,0.6573479,117290.0,117280.0,1.19279345]
[1753161250341,0.6573479,117290.0,117280.0,1.19479345]
[1753161250638,0.6583479,117290.0,117280.0,0.75918532]
[1753161250835,0.995795,117290.0,117280.0,1.11798532]
[1753161251035,0.6583479,117290.0,117280.0,1.11798532]
[1753161251337,0.6583479,117290.0,117280.0,1.11630532]
[1753161252037,0.6583479,117290.0,117280.0,1.16305532]
[1753161252038,0.4878199,117290.0,117280.0,1.16305532]
[1753161252342,0.47610212,117290.0,117280.0,0.80225532]
[1753161253636,0.79089212,117290.0,117280.0,0.86154532]
[1753161253942,0.45128212,117290.0,117280.0,0.86154532]
[1753161254242,0.45128212,117290.0,117280.0,0.84240532]
[1753161254438,0.82139972,117290.0,117280.0,0.04070532]
[1753161254644,0.70087172,117290.0,117280.0,0.75306532]
[1753161254939,0.34007172,117290.0,117280.0,0.79820532]
[1753161255333,0.70087172,117290.0,117280.0,0.79740532]
[1753161255537,0.70087172,117290.0,117280.0,0.79720532]
[1753161255939,1.03831882,117290.0,117280.0,0.79720532]
[1753161256138,0.62968682,117290.0,117280.0,0.79728532]
[1753161256340,0.61836392,117290.0,117280.0,0.79728532]
[1753161256539,0.64254392,117290.0,117280.0,0.79728532]
[1753161256733,0.30509682,117290.0,117280.0,0.79828532]
[1753161256942,0.30509682,117290.0,117280.0,0.08684532]
[1753161257144,0.30509682,117290.0,117280.0,0.79648532]
[1753161257738,0.30509682,117290.0,117280.0,0.78648959]
[1753161258240,0.72505376,117290.0,117280.0,0.78600959]
[1753161258445,0.72505376,117290.0,117280.0,0.79600526]
[1753161258844,0.72505376,117290.0,117280.0,0.78600959]
[1753161259146,0.72505376,117290.0,117280.0,0.89274331]
[1753161259644,1.08585376,117290.0,117280.0,0.19257913]
[1753161259841,1.08585376,117290.0,117280.0,0.87001079]
[1753161260039,0.72505376,117290.0,117280.0,0.87001079]
[1753161260439,0.72505376,117290.0,117280.0,0.16209079]
[1753161260639,1.08585376,117290.0,117280.0,0.79388541]
[1753161260941,0.74840666,117290.0,117280.0,0.79328541]
[1753161261147,0.80899116,117290.0,117280.0,0.79328541]
[1753161261444,0.47154406,117290.0,117280.0,0.79304541]
[1753161261645,0.80899116,117290.0,117280.0,0.08584541]
[1753161261945,0.80899116,117290.0,117280.0,0.79264541]
[1753161262145,1.16979116,117290.0,117280.0,0.79264541]
[1753161262544,1.16979116,117290.0,117280.0,0.79204541]
[1753161262740,1.16979116,117290.0,117280.0,0.08584541]
[1753161262936,1.16979116,117290.0,117280.0,0.78204959]
[1753161263141,1.16979116,117290.0,117280.0,0.92911959]
[1753161263441,1.16979116,117290.0,117280.0,0.78204959]
[1753161263642,0.83234406,117290.0,117280.0,0.78204959]
[1753161263845,1.16979116,117290.0,117280.0,0.79204557]
[1753161264047,1.16979116,117290.0,117280.0,0.79064557]
[1753161264246,1.16979116,117290.0,117280.0,0.08584557]
[1753161264542,0.80899116,117290.0,117280.0,0.90115557]
[1753161264749,1.16979116,117290.0,117280.0,0.90115557]
[1753161264945,0.80899116,117290.0,117280.0,0.90115557]
[1753161265248,1.16979116,117290.0,117280.0,0.90115557]
[1753161265946,0.70164,117290.0,117280.0,0.99789331]
[1753161266148,1.1404248,117290.0,117280.0,0.99789331]
[1753161266345,1.1404248,117290.0,117280.0,0.32965331]
[1753161266545,1.1404248,117290.0,117280.0,1.03441331]
[1753161268552,1.1404248,117290.0,117280.0,1.03093331]
[1753161268938,0.7796248,117290.0,117280.0,1.03093331]
[1753161269140,0.4421777,117290.0,117280.0,1.03093331]
[1753161269344,1.1404248,117290.0,117280.0,1.03093331]
[1753161269751,1.1404248,117290.0,117280.0,1.06044331]
[1753161269952,1.3109528,117290.0,117280.0,0.19257928]
[1753161270251,1.3109528,117290.0,117280.0,0.78611239]
[1753161270446,0.1704592,117270.0,117260.0,0.87944]
[1753161270647,0.9987063,117270.0,117260.0,0.17972]
[1753161270951,0.9987063,117270.0,117260.0,0.85553]
[1753161270952,1.1692583,117270.0,117260.0,0.85553]
[1753161271446,1.1692583,117270.0,117260.0,0.17972]
[1753161271753,1.1692583,117270.0,117260.0,0.87944]
[1753161271952,1.1692583,117270.0,117260.0,0.15569]
[1753161272249,1.1692583,117270.0,117260.0,0.85453]
[1753161272653,1.1692583,117270.0,117260.0,0.15569]
[1753161275055,0.1704737,117260.0,117250.0,0.85169]
[1753161275244,0.9787208,117260.0,117250.0,0.85169]
[1753161275447,0.9787208,117260.0,117250.0,0.15569]
[1753161276150,0.1704882,117250.0,117240.0,0.49538]
[1753161276344,1.016978,117250.0,117240.0,0.15569]
[1753161276550,0.656178,117250.0,117240.0,0.15569]
[1753161276743,0.1705028,117240.0,117230.0,0.87464]
[1753161276943,0.99791513,117240.0,117230.0,0.87464]
[1753161277160,0.99791513,117240.0,117230.0,0.17972]
[1753161277850,0.63711513,117240.0,117230.0,0.17972]
[1753161278448,0.29966803,117240.0,117230.0,0.17972]
[1753161278848,0.63711513,117240.0,117230.0,0.17972]
[1753161279052,0.29966803,117240.0,117230.0,0.21011]
[1753161279254,0.33746954,117240.0,117230.0,0.2226]
[1753161279452,0.32904803,117240.0,117230.0,0.2226]
[1753161279958,0.66649513,117240.0,117230.0,0.5834]
[1753161280658,0.29966803,117240.0,117230.0,0.8250374]
[1753161280860,0.29966803,117240.0,117230.0,1.6121474]
[1753161281048,0.29966803,117240.0,117230.0,0.8250374]
[1753161281250,0.29966803,117240.0,117230.0,1.6121474]
[1753161281648,0.29952463,117240.0,117230.0,1.6121474]
[1753161281848,0.12902183,117240.0,117230.0,1.6121474]
[1753161282052,0.29952463,117240.0,117230.0,2.6422745]
[1753161282455,0.29952463,117240.0,117230.0,2.3048274]
[1753161282853,0.12902183,117240.0,117230.0,2.3048274]
[1753161283161,0.29952463,117240.0,117230.0,2.3048274]
[1753161283560,0.29952463,117240.0,117230.0,2.13431]
[1753161283860,0.12902183,117240.0,117230.0,1.6121473]
[1753161284055,0.29952463,117240.0,117230.0,1.6121473]
[1753161284461,0.2805028,117240.0,117230.0,2.3073873]
[1753161285363,0.11,117240.0,117230.0,2.3073873]
[1753161285558,0.11,117240.0,117230.0,2.3083873]
[1753161285760,0.2805028,117240.0,117230.0,2.3083873]
[1753161286860,0.03368359,117240.0,117230.0,1.9505944]
[1753161287057,0.03368359,117240.0,117230.0,2.6435144]
[1753161287859,0.3830991,117260.0,117230.0,2.4729971]
[1753161288060,0.06124532,117320.0,117310.0,0.29665]
[1753161288358,0.13,117320.0,117310.0,2.62723865]
[1753161289757,0.13,117320.0,117310.0,2.69624377]
[1753161290865,1.0616936,117320.0,117310.0,0.36565512]
[1753161291067,0.7452936,117320.0,117310.0,0.36565512]
[1753161291263,0.4078465,117320.0,117310.0,0.36565512]
[1753161291463,0.4078465,117320.0,117310.0,1.05577512]
[1753161291662,0.4078465,117320.0,117310.0,1.05561512]
[1753161291864,0.3883765,117320.0,117310.0,1.05861512]
[1753161292064,0.3003865,117320.0,117310.0,1.05861512]
[1753161292369,0.3013865,117320.0,117310.0,1.82379557]
[1753161292664,0.3013865,117320.0,117310.0,1.13403557]
[1753161292865,0.3013865,117320.0,117310.0,1.82327557]
[1753161293267,0.3013865,117320.0,117310.0,1.82275557]
[1753161294264,0.3332865,117320.0,117310.0,1.82275557]
[1753161294464,0.7252465,117320.0,117310.0,1.82275557]
[1753161294763,0.1704302,117290.0,117280.0,0.47842]
[1753161295066,0.3004302,117290.0,117280.0,1.1647]
[1753161295265,0.3004302,117290.0,117280.0,2.10352515]
[1753161295967,0.3004302,117290.0,117280.0,2.10652515]
[1753161296167,0.3004302,117290.0,117280.0,2.44397225]
[1753161296357,0.3004302,117290.0,117280.0,1.82528837]
[1753161296562,0.3004302,117290.0,117280.0,2.51160837]
[1753161296967,0.3004302,117290.0,117280.0,2.69163837]
[1753161298067,0.3004302,117290.0,117280.0,2.68863837]
[1753161298265,0.3004302,117290.0,117280.0,2.68963837]
[1753161298459,0.3004302,117290.0,117280.0,2.35419127]
[1753161298660,0.3004302,117290.0,117280.0,2.68987837]
[1753161299565,0.3004302,117290.0,117280.0,2.00531837]
[1753161299769,0.5802402,117290.0,117280.0,1.42883045]
[1753161299971,0.5802402,117290.0,117280.0,2.11047045]
[1753161300471,0.5802402,117290.0,117280.0,2.28091515]
[1753161300666,0.4693102,117290.0,117280.0,2.11047045]
[1753161301058,0.4693102,117290.0,117280.0,1.81920111]
[1753161301260,0.4693102,117290.0,117280.0,1.13556111]
[1753161302066,0.4693102,117290.0,117280.0,1.49636111]
[1753161302262,0.4693102,117290.0,117280.0,1.66680581]
[1753161302466,0.3004302,117290.0,117280.0,0.89842536]
[1753161302667,0.3004302,117290.0,117280.0,2.00425291]
[1753161303466,0.13,117290.0,117280.0,2.00425291]
[1753161303861,0.3004302,117290.0,117280.0,2.00425291]
[1753161305674,0.3004302,117290.0,117280.0,2.30065291]
[1753161306367,0.13,117290.0,117280.0,2.30165291]
[1753161306568,0.3004302,117290.0,117280.0,2.30165291]
[1753161307475,0.3004302,117290.0,117280.0,1.96420581]
[1753161307662,0.3004302,117290.0,117280.0,2.06655291]
[1753161308674,0.3004302,117290.0,117280.0,2.06555291]
[1753161308975,0.3004302,117290.0,117280.0,2.06655291]
[1753161309369,0.4113602,117290.0,117280.0,2.23678111]
[1753161309571,0.9402773,117290.0,117280.0,0.54097]
[1753161309769,0.9402773,117290.0,117280.0,1.62415045]
[1753161309976,0.9402773,117290.0,117280.0,0.10543]
[1753161310764,0.9402773,117290.0,117280.0,0.17917]
[1753161310968,0.9402773,117290.0,117280.0,0.28915]
[1753161311975,0.6028302,117290.0,117280.0,0.28915]
[1753161312170,0.9402773,117290.0,117280.0,0.17917]
[1753161312478,0.9412773,117290.0,117280.0,0.17817]
[1753161312666,0.9412773,117290.0,117280.0,0.02697]
[1753161312873,0.9412773,117290.0,117280.0,0.01231]
[1753161313275,0.9412773,117290.0,117280.0,0.0592]
[1753161313477,0.9412773,117290.0,117280.0,0.11293]
[1753161314573,1.6145173,117290.0,117280.0,0.11293]
[1753161315278,1.6324906,117290.0,117280.0,0.01231]
[1753161315478,0.2904891,117270.0,117260.0,1.10578]
[1753161315680,0.6142891,117270.0,117260.0,2.16510415]
[1753161315881,0.6142891,117270.0,117260.0,1.32139045]
[1753161316081,0.6142891,117270.0,117260.0,1.99371045]
[1753161316283,0.6142891,117270.0,117260.0,2.16418415]
[1753161316483,0.5910691,117270.0,117260.0,2.16618415]
[1753161317181,0.5418591,117270.0,117260.0,2.16618415]
[1753161317867,0.5418591,117270.0,117260.0,1.99571045]
[1753161318067,0.5910691,117270.0,117260.0,2.16718415]
[1753161318874,0.5910691,117270.0,117260.0,2.16618415]
[1753161319078,0.3004591,117270.0,117260.0,2.16518415]
[1753161319279,0.3004591,117270.0,117260.0,2.52598415]
[1753161320379,0.3004591,117270.0,117260.0,2.82238415]
[1753161320682,0.4218291,117270.0,117260.0,2.82238415]
[1753161320875,0.4218291,117270.0,117260.0,1.80856045]
[1753161320876,0.4710391,117270.0,117260.0,1.80856045]
[1753161321088,0.4710391,117270.0,117260.0,2.47788045]
[1753161321583,0.4833791,117270.0,117260.0,2.47788045]
[1753161322181,0.4833791,117270.0,117260.0,1.80856045]
[1753161322379,0.4833791,117270.0,117260.0,2.47704045]
[1753161322983,0.4833791,117270.0,117260.0,2.11624045]
[1753161323280,0.4833791,117270.0,117260.0,1.44776045]
[1753161323485,0.4833791,117270.0,117260.0,2.11560045]
[1753161324276,0.4833791,117270.0,117260.0,1.44776045]
[1753161324478,0.4833791,117270.0,117260.0,2.11468045]
[1753161324879,0.5910691,117270.0,117260.0,1.44776045]
[1753161325188,0.6142891,117270.0,117260.0,2.11416045]
[1753161325686,0.63228193,117270.0,117260.0,2.11364045]
[1753161326181,0.6142891,117270.0,117260.0,2.11364045]
[1753161326587,0.5910691,117270.0,117260.0,2.11364045]
[1753161328281,0.60905618,117270.0,117260.0,2.11364045]
[1753161329081,0.5910691,117270.0,117260.0,2.11364045]
[1753161330489,0.60905652,117270.0,117260.0,2.11364045]
[1753161330684,0.60905652,117270.0,117260.0,1.44776045]
[1753161330890,0.94650362,117270.0,117260.0,2.11072045]
[1753161331485,0.94650362,117270.0,117260.0,2.11024045]
[1753161331686,0.60905652,117270.0,117260.0,2.11024045]
[1753161334286,0.63227652,117270.0,117260.0,2.10888045]
[1753161334585,0.63227652,117270.0,117260.0,1.74808045]
[1753161334786,0.63227652,117270.0,117260.0,2.10888045]
[1753161336697,0.63227652,117270.0,117260.0,2.10684045]
[1753161337295,0.60905652,117270.0,117260.0,2.10684045]
[1753161337796,0.55984652,117270.0,117260.0,2.10684045]
[1753161337997,0.54750652,117270.0,117260.0,2.11112045]
[1753161338698,0.59671652,117270.0,117260.0,1.44776045]
[1753161339001,0.59671652,117270.0,117260.0,2.11092045]
[1753161339303,0.60905652,117270.0,117260.0,2.11092045]
[1753161339892,0.60905652,117270.0,117260.0,1.3421]
[1753161340096,0.96972362,117270.0,117260.0,1.08696045]
[1753161340295,0.96972362,117270.0,117260.0,1.74900045]
[1753161340602,0.60905652,117270.0,117260.0,1.74900045]
[1753161340991,0.60905652,117270.0,117260.0,2.10980045]
[1753161341186,1.28117918,117270.0,117260.0,0.11833]
[1753161341392,1.94249918,117270.0,117260.0,0.001]
[1753161342095,0.4843038,117260.0,117250.0,0.06978]
[1753161342303,0.4843183,117250.0,117240.0,0.11733]
[1753161342597,1.99172616,117250.0,117240.0,0.06978]
[1753161342993,1.82123786,117250.0,117230.0,0.16702]
[1753161343194,0.2905474,117230.0,117220.0,1.15383]
[1753161343393,0.96022982,117230.0,117220.0,1.74528045]
[1753161344195,0.62233482,117230.0,117220.0,1.74528045]
[1753161344402,0.59911482,117230.0,117220.0,1.74528045]
[1753161344700,0.30850482,117230.0,117220.0,2.10608045]
[1753161345001,0.30850482,117230.0,117220.0,2.28061245]
[1753161345600,0.30850482,117230.0,117220.0,2.28561245]
[1753161345806,0.30850482,117230.0,117220.0,2.11508045]
[1753161347102,0.30850482,117230.0,117220.0,2.47907831]
[1753161348901,0.46723482,117230.0,117220.0,2.41148045]
[1753161349103,0.94916982,117230.0,117220.0,0.98278]
[1753161349404,0.94916982,117230.0,117220.0,2.40956045]
[1753161349797,0.94916982,117230.0,117220.0,2.40832045]
[1753161350500,0.9068124,117230.0,117220.0,2.40832045]
[1753161352994,0.9068124,117230.0,117220.0,2.11192045]
[1753161353598,0.9068124,117230.0,117220.0,1.45476045]
[1753161353903,0.2905174,117230.0,117220.0,2.11016045]
[1753161354702,0.4008074,117230.0,117220.0,2.11016045]
[1753161355096,0.4008074,117230.0,117220.0,1.45476045]
[1753161355800,0.9068124,117230.0,117220.0,1.45476045]
[1753161356201,0.9068124,117230.0,117220.0,2.10908045]
[1753161357600,0.5689174,117230.0,117220.0,2.10908045]
[1753161357805,0.9068124,117230.0,117220.0,2.10908045]
[1753161358004,1.2919824,117230.0,117220.0,1.09396045]
[1753161358305,0.9311824,117230.0,117220.0,1.74720045]
[1753161358607,0.9311824,117230.0,117220.0,1.74620045]
[1753161359101,0.9311824,117230.0,117220.0,0.20611]